[Event "1st FIDE Olympiad DIS 2023"]
[Site "Belgrade"]
[Date "2023.01.30"]
[Round "1.3"]
[White "Morales Santos, Natasha"]
[Black "Sauti Harry"]
[Result "1-0"]
[ECO "E90"]
[WhiteElo "1893"]
[BlackElo "1693"]
[Annotator "NA RC COMBH"]
[PlyCount "107"]
[EventDate "2023.01.30"]
[EventType "team-tourn"]
[EventCountry "SRB"]
[SourceTitle "playchess.com"]
[Source "ChessBase"]
[SourceQuality "1"]
[WhiteTeam "FIDE"]
[BlackTeam "Zambia"]
[WhiteTeamCountry "PUR"]
[BlackTeamCountry "ZAM"]
[TimeControl "40/5400+30:1800+30"]

{[%evp 17,107,68,81,42,84,45,104,88,91,104,85,32767,119,101,100,109,156,32767,154,158,150,131,151,125,106,31,32767,0,17,32767,32767,32767,32767,32767,32767,32767,135,63,64,14,0,32767,32767,32767,32767,32767,32767,16,0,32767,32767,0,32767,32767,0,0,32767,27,64,32767,32767,32767,32767,32767,32767,137,32767,32767,32767,68,348,32767,326,454,442,32767,695,32767,32767,32767,32767,32767,32767,32767,32767,32767,32767,32767,29987,32767,29986,29985]} 1. d4 {[%emt 0:00:03]} Nf6 {[%emt 0:00:59]} 2. c4 {[%emt 0:00:03]} g6 {[%emt 0:00:22]} 3. Nc3 {[%emt 0:00:08]} Bg7 {[%emt 0:00:20]} 4. e4 {[%emt 0:00:08]} d6 {[%emt 0:05:23]} 5. h3 {[%emt 0:00:39]} O-O {[%emt 0:04:36]} 6. Be3 {[%emt 0:00:28]} c6 {[%emt 0:19:04]} 7. Nf3 {[%emt 0:03:18]} Nbd7 {[%emt 0:04:04]} 8. Qc2 {[%emt 0:07:45]} Ne8 {[%emt 0:04:03]} 9. Be2 {[%emt 0:10:29]} Qc7 {[%emt 0:00:22]} 10. O-O-O {[%emt 0:02:27]} e5 {[%emt 0:00:45]} 11. dxe5 {[%emt 0:02:52]} Nxe5 {[%emt 0:00:53]} ({Black should play} 11... dxe5 $14 12. b3 b6) 12. Nxe5 {[%emt 0:00:19]} dxe5 {[%emt 0:00:18]} 13. Bc5 {[%emt 0:04:20]} Be6 {[%emt 0:00:43]} 14. h4 {[%emt 0:05:46]} b6 {[%emt 0:00:12]} 15. Bxf8 {[%emt 0:00:15]} Bxf8 {[%emt 0:00:31]} 16. h5 {[%emt 0:02:47]} Bh6+ {[%emt 0:00:29]} (16... a6 $142) 17. Kb1 {[%emt 0:00:14]} g5 {[%emt 0:00:37]} 18. Qd3 {[%emt 0:13:32]} Nf6 {[%emt 0:02:32]} 19. Qg3 {[%emt 0:01:25]} a6 {[%emt 0:00:43]} 20. Rd3 {[%emt 0:07:44]} (20. Qe3 $18) 20... b5 {[%emt 0:00:22]} 21. Rf3 {[%emt 0:05:53]} (21. c5 $16) 21... Kg7 {[%emt 0:00:20]} 22. c5 {[%emt 0:11:31]} (22. Rxf6 $14 Kxf6 23. Nd1) 22... b4 {[%emt 0:00:24]} 23. Rxf6 {[%emt 0:00:40]} Kxf6 {[%emt 0:01:24]} 24. Na4 {[%emt 0:00:03]} b3 {[%emt 0:03:06]} 25. axb3 {[%emt 0:01:28]} Qa5 {[%emt 0:00:52]} 26. Qf3+ {[%emt 0:01:28]} Kg7 {[%emt 0:00:12]} (26... Ke7 $142) 27. Qc3 {[%emt 0:05:04]} (27. Rd1 $16) 27... Qxc3 {[%emt 0:01:13]} 28. Nxc3 {[%emt 0:00:26]} ({White should try} 28. bxc3 $14 Bxb3 29. Nb6) 28... Bxb3 {[%emt 0:00:31]} 29. Bd1 {[%emt 0:00:02]} Be6 {[%emt 0:00:32]} 30. Ba4 {[%emt 0:00:29]} Rc8 {[%emt 0:00:39]} 31. f3 {[%emt 0:05:52]} a5 {[%emt 0:01:45]} 32. g4 {[%emt 0:01:20]} Kf6 {[%emt 0:00:24]} 33. Ne2 {[%emt 0:00:54]} Bc4 {[%emt 0:00:43]} 34. Ng3 {[%emt 0:00:42]} Bf8 {[%emt 0:00:23]} 35. Rc1 {[%emt 0:00:34]} Bd3+ {[%emt 0:00:53]} 36. Ka2 {[%emt 0:00:25]} Bb5 {[%emt 0:02:47]} 37. Bxb5 {[%emt 0:04:09]} cxb5 {[%emt 0:00:36]} 38. c6 {[%emt 0:00:02]} Bd6 {[%emt 0:01:27]} 39. Nf5 {[%emt 0:00:16]} Bc7 {[%emt 0:00:29]} 40. Rc5 {[%emt 0:00:20]} Bb6 {[%emt 0:01:33]} 41. Rd5 {[%emt 0:12:10]} Rxc6 {[%emt 0:00:39]} 42. Rd6+ {[%emt 0:00:02]} Rxd6 {[%emt 0:00:48]} 43. Nxd6 {[%emt 0:00:02]} b4 $2 {[%emt 0:00:40]} (43... Bd8 $11) 44. Nc4 {[%emt 0:00:06]} Bd8 {[%emt 0:01:14]} 45. Kb3 {[%emt 0:00:09]} Ke6 {[%emt 0:01:37]} 46. Ka4 {[%emt 0:00:17]} f6 {[%emt 0:05:07]} 47. Nxa5 {[%emt 0:00:16]} Be7 {[%emt 0:01:23]} 48. Nc6 {[%emt 0:00:17]} Kd7 {[%emt 0:02:56]} 49. Nxe7 {[%emt 0:00:34]} Kxe7 {[%emt 0:00:19]} 50. Kxb4 {[%emt 0:00:02]} Kd6 {[%emt 0:00:15]} 51. Kb5 {[%emt 0:00:06]} Kc7 {[%emt 0:00:41]} 52. Kc5 {[%emt 0:00:05]} Kd7 {[%emt 0:00:18]} 53. Kd5 {[%emt 0:00:03]} h6 {[%emt 0:01:25]} 54. b3 {[%emt 0:00:41]} 1-0

[Event "1st FIDE Olympiad DIS 2023"]
[Site "Belgrade"]
[Date "2023.01.30"]
[Round "1.4"]
[White "Mekus, Manuela"]
[Black "Stachanczyk, Jacek"]
[Result "0-1"]
[ECO "A08"]
[WhiteElo "1624"]
[BlackElo "2189"]
[Annotator "TA"]
[PlyCount "66"]
[EventDate "2023.01.30"]
[EventType "team-tourn"]
[EventCountry "SRB"]
[SourceTitle "playchess.com"]
[Source "ChessBase"]
[SourceQuality "1"]
[WhiteTeam "Germany"]
[BlackTeam "Poland"]
[WhiteTeamCountry "GER"]
[BlackTeamCountry "POL"]
[TimeControl "40/5400+30:1800+30"]

{[%evp 16,66,0,-14,0,0,0,-24,0,-36,-29,-78,-49,-88,-85,-154,-147,-137,-140,-154,-146,-177,-131,-257,-254,-242,-137,-141,-102,-153,-81,-272,-264,-460,-443,-429,-428,-555,-549,-767,-762,-741,-744,-697,-566,-816,-814,-809,-808,-808,-804,-766,-760]} 1. Nf3 {[%emt 0:00:19]} Nf6 {[%emt 0:00:00]} 2. g3 g6 {[%emt 0:00:17]} 3. Bg2 {[%emt 0:00:36]} Bg7 {[%emt 0:00:39]} 4. O-O {[%emt 0:00:17]} O-O {[%emt 0:00:12]} 5. d3 {[%emt 0:00:30]} d5 {[%emt 0:00:31]} 6. c3 {[%emt 0:00:41]} c5 {[%emt 0:01:09]} 7. Nbd2 {[%emt 0:00:27]} Nc6 {[%emt 0:00:28]} 8. e4 {[%emt 0:00:57]} e5 {[%emt 0:05:08]} 9. Re1 {[%emt 0:03:46]} dxe4 {[%emt 0:04:24] A08: King's Indian Attack.} 10. dxe4 {[%emt 0:01:44]} Qc7 {[%emt 0:03:26]} 11. a4 {[%emt 0:02:08]} h6 {[%emt 0:03:14] [#] Black has an edge.} 12. h4 $146 {[%emt 0:06:49]} ({Predecessor:} 12. Nc4 Be6 13. Qe2 Rfd8 14. Nfd2 Rd7 15. a5 Rad8 16. Bf1 Ne8 17. h4 {1-0 Reyes Larena,J (2436)-Madina Yadarola,M (2276) Madrid-chT 1314 2013 (11.24)}) 12... Be6 {[%emt 0:05:38]} 13. Qc2 {[%emt 0:02:46]} (13. Qe2 $11 {deserves consideration.}) 13... Rfd8 {[%emt 0:03:41]} 14. Nf1 {[%emt 0:03:06]} Na5 {[%emt 0:09:46]} 15. N3d2 {[%emt 0:16:09] [#]} (15. Be3 $142) 15... c4 $1 $17 {[%emt 0:05:52]} 16. Ne3 {[%emt 0:01:41]} Rd7 {[%emt 0:01:43]} 17. Ndf1 {[%emt 0:02:53]} Rad8 {[%emt 0:06:52]} 18. Rd1 {[%emt 0:00:54]} Rd3 {[%emt 0:04:10]} (18... Rxd1 $19 19. Nxd1 Nb3) 19. Bd2 {[%emt 0:02:41]} (19. Rxd3 $17 cxd3 20. Qd1) 19... Nb3 $19 {[%emt 0:00:50]} 20. Rab1 {[%emt 0:04:53]} Qa5 {[%emt 0:02:56]} (20... Bd7 $19 21. Be1 Bxa4 22. Rxd3 {[%mdl 64] Remove Defender} cxd3) 21. Be1 $17 {[%emt 0:02:27]} a6 {[%emt 0:02:06] Black has more active pieces.} 22. Nd5 {[%emt 0:00:45]} Nxd5 {[%emt 0:02:14]} ({Not} 22... Qxa4 23. Rxd3 cxd3 24. Qxd3 Nxd5 25. Ne3 $15) (22... Rxd1 $142 23. Nxf6+ Bxf6 24. Rxd1 Qxa4) 23. exd5 $2 {[%emt 0:03:29] [#] Now White is beyond hope.} (23. Rxd3 $17 cxd3 24. Qxb3) 23... Bxd5 $19 {[%emt 0:02:18]} 24. Bxd5 {[%emt 0:00:57]} (24. Ne3 Be6 25. Bxb7) 24... Qxd5 {[%emt 0:02:23] Black is clearly winning.} ({Worse is} 24... R8xd5 25. Ne3 Qc5 26. Nxd5 Qxd5 27. Qe2 $17) 25. Ne3 {[%emt 0:01:12]} Qe6 {[%emt 0:02:19] Strongly threatening ...h5.} 26. Qe2 {[%emt 0:02:55]} h5 {[%emt 0:05:12]} 27. Nc2 {[%emt 0:12:50]} Qd7 {[%emt 0:01:17][%csl LRa4,LRd1][%cal Rd3d1]} 28. Ne3 {[%emt 0:00:59]} Bh6 {[%emt 0:01:01]} 29. Rxd3 {[%emt 0:01:39]} Qxd3 {[%emt 0:03:05]} 30. Qd1 {[%emt 0:01:20]} Bxe3 {[%emt 0:00:33]} 31. Qxd3 {[%emt 0:00:47]} cxd3 {[%emt 0:00:30]} 32. fxe3 {[%emt 0:00:26]} d2 {[%emt 0:00:18]} 33. Bxd2 {[%emt 0:00:14]} Rxd2 {[%emt 0:00:15] Weighted Error Value: White=0.70/Black=0.24 (precise)} 0-1

[Event "1st FIDE Olympiad DIS 2023"]
[Site "Belgrade"]
[Date "2023.01.30"]
[Round "1.5"]
[White "Orsag, Milan"]
[Black "Ibraimov, Kubanychbek"]
[Result "1-0"]
[ECO "D25"]
[WhiteElo "2308"]
[BlackElo "1316"]
[Annotator "TA"]
[PlyCount "83"]
[EventDate "2023.01.30"]
[EventType "team-tourn"]
[EventCountry "SRB"]
[SourceTitle "playchess.com"]
[Source "ChessBase"]
[SourceQuality "1"]
[WhiteTeam "Czech Republic"]
[BlackTeam "Kyrgyzstan"]
[WhiteTeamCountry "CZE"]
[BlackTeamCountry "KGZ"]
[TimeControl "40/5400+30:1800+30"]

{[%evp 10,83,29,21,126,118,124,127,120,106,181,170,187,176,182,174,179,81,70,78,81,25,92,89,82,82,87,83,106,99,97,89,113,111,178,185,174,138,147,140,185,146,199,187,197,191,343,216,242,214,237,232,236,118,114,111,279,278,270,273,270,275,290,248,277,247,591,593,785,777,9356,8712,6279,6272,1228,934]} 1. d4 {[%emt 0:00:06]} d5 {[%emt 0:00:21]} 2. c4 {[%emt 0:00:29]} dxc4 {[%emt 0:00:39]} 3. Nf3 {[%emt 0:00:18]} Bg4 {[%emt 0:00:44]} 4. e3 {[%emt 0:01:21]} e6 {[%emt 0:00:29]} 5. Bxc4 {[%emt 0:00:10]} Nf6 {[%emt 0:00:40]} 6. Qb3 {[%emt 0:03:02]} b6 {[%emt 0:01:05] D25: Queen's Gambit Accepted: 4 e3: sidelines and 4...Bg4.} (6... Bxf3 $11 7. gxf3 Qc8) 7. Ne5 $1 $16 {[%emt 0:00:52]} ({Much worse is} 7. h3 $6 Bxf3 8. gxf3 a6 $11) 7... Be7 {[%emt 0:02:29]} 8. Bb5+ {[%emt 0:01:36]} Kf8 {[%emt 0:01:07] [#] White is better.} 9. O-O $146 {[%emt 0:02:14] White has more active pieces.} ({Predecessor:} 9. Nc6 Nxc6 10. Bxc6 Rb8 11. Na3 Qd6 12. Qa4 Qb4+ 13. Qxb4 Bxb4+ 14. Bd2 Bxa3 15. bxa3 {1-0 Vazquez Clerici,C-Litvak,S Mar del Plata op 1992 (7)}) 9... c5 {[%emt 0:00:57]} (9... Bh5 $16) 10. Nxg4 $18 {[%emt 0:05:45]} Nxg4 {[%emt 0:00:35]} 11. Be2 {[%emt 0:00:08]} h5 {[%emt 0:01:41]} 12. h3 $1 {[%emt 0:00:30]} Qc7 {[%emt 0:00:38][%csl Gg4][%cal Rc7h2]} 13. f4 {[%emt 0:06:59]} (13. hxg4 $18 {has better winning chances.} hxg4 14. f4 (14. g3 Qc6 $16)) 13... Nf6 $16 {[%emt 0:01:09]} 14. Bf3 {[%emt 0:09:37]} Nc6 {[%emt 0:00:29]} 15. Nc3 {[%emt 0:03:08]} (15. dxc5 $16 Bxc5 16. Nc3) 15... Na5 {[%emt 0:01:37]} (15... cxd4 $11 {keeps the balance.} 16. Nb5 Qd7) 16. Qc2 $36 {[%emt 0:17:47][%mdl 2048] White is really pushing.} Rc8 {[%emt 0:00:49]} 17. Qe2 {[%emt 0:07:40]} cxd4 {[%emt 0:00:44] [#]} 18. Nb5 {[%emt 0:02:22]} Qc4 {[%emt 0:06:37]} 19. Qxc4 {[%emt 0:05:04]} Nxc4 {[%emt 0:01:05]} 20. Nxa7 {[%emt 0:01:12]} Rc7 {[%emt 0:00:28]} 21. Nb5 {[%emt 0:00:09]} Rc5 {[%emt 0:00:16]} (21... Rc8 $16 {keeps fighting.}) 22. Nxd4 $18 {[%emt 0:00:37]} e5 {[%emt 0:04:03]} 23. fxe5 {[%emt 0:04:26]} Nxe5 {[%emt 0:00:38]} 24. Be2 {[%emt 0:05:36]} g6 {[%emt 0:00:46]} 25. b3 {[%emt 0:01:55]} Kg7 {[%emt 0:00:09] [#]} (25... Rc3 $16 {was called for.} 26. Nb5 (26. Bd2 Rc8 $16) 26... Rc2) 26. Bb2 $1 {[%emt 0:05:40]} Rd8 {[%emt 0:00:36]} 27. Rad1 {[%emt 0:05:50]} Ne4 $2 {[%emt 0:01:08]} (27... Rcd5 28. Rc1 Bc5) 28. Nf3 {[%emt 0:02:54]} f6 {[%emt 0:00:46]} 29. Nxe5 {[%emt 0:01:10]} fxe5 {[%emt 0:00:01]} 30. Rxd8 {[%emt 0:01:48]} Bxd8 {[%emt 0:00:02]} 31. b4 {[%emt 0:00:15]} (31. Bd3 $18 Nd6 32. e4) 31... Rc2 $16 {[%emt 0:02:06][%csl LRb2,LRe2]} 32. Bxe5+ {[%emt 0:00:08]} Nf6 $2 {[%emt 0:00:07] Loses the game.} (32... Bf6 $16) 33. Bf3 $18 {[%emt 0:02:22]} Rxa2 {[%emt 0:00:07]} 34. Rd1 {[%emt 0:00:22]} Be7 {[%emt 0:00:07]} 35. Rd7 {[%emt 0:00:16]} Kf7 {[%emt 0:00:17]} 36. Rb7 {[%emt 0:00:08] Threatens to win with Bd6.} Ra3 {[%emt 0:01:07]} 37. Bd4 {[%emt 0:00:39] A strong pair of Bishops.} ({Weaker is} 37. Rxb6 Rxe3 38. Bd4 Rd3 $16) 37... Kf8 $2 {[%emt 0:03:59]} (37... Rb3 {is tougher.} 38. Bxb6 Ke6) 38. Rxb6 {[%emt 0:00:57] White is clearly winning.} Rb3 {[%emt 0:00:32]} 39. Bxf6 {[%emt 0:00:24]} Bxb4 {[%emt 0:00:09]} 40. Bd5 {[%emt 0:01:52][%cal Rb6b8]} Rb1+ {[%emt 0:00:08]} 41. Kh2 {[%emt 0:30:08][%cal Rb6b8]} Ke8 {[%emt 0:30:31]} 42. Be6 {[%emt 0:00:48] Weighted Error Value: White=0.14 (very precise) /Black=0.43} 1-0

[Event "1st FIDE Olympiad DIS 2023"]
[Site "Belgrade"]
[Date "2023.01.30"]
[Round "1.5"]
[White "Rivas Cabrera, Edgar"]
[Black "Gruenfeld, Yehuda"]
[Result "1/2-1/2"]
[ECO "E63"]
[WhiteElo "1987"]
[BlackElo "2414"]
[Annotator "TA"]
[PlyCount "127"]
[EventDate "2023.01.30"]
[EventType "team-tourn"]
[EventCountry "SRB"]
[SourceTitle "playchess.com"]
[Source "ChessBase"]
[SourceQuality "1"]
[WhiteTeam "Venezuela"]
[BlackTeam "Israel"]
[WhiteTeamCountry "VEN"]
[BlackTeamCountry "ISR"]
[TimeControl "40/5400+30:1800+30"]

{[%evp 18,127,29,37,51,49,44,40,61,60,67,47,29,19,36,15,0,0,22,20,11,8,15,0,29,0,9,0,0,0,31,25,31,25,29,0,21,0,21,12,16,10,15,15,27,26,25,0,27,0,25,0,0,0,0,0,0,-67,0,0,0,0,0,0,0,0,0,0,0,-14,0,0,0,0,0,0,0,-14,-14,-14,-14,-14,-14,-14,-14,-14,-14,-14,-14,-14,-14,-14,-14,-14,-14,-89,-77,-77,-14,-98,-14,-14,0,0,0,0,0,0,0,0,15,16]} 1. c4 {[%emt 0:00:53]} Nf6 {[%emt 0:00:06]} 2. Nc3 {[%emt 0:04:32]} g6 {[%emt 0:01:37]} 3. Nf3 {[%emt 0:04:45]} Bg7 {[%emt 0:00:08]} 4. g3 {[%emt 0:01:32]} O-O {[%emt 0:00:09]} 5. Bg2 {[%emt 0:00:11]} d6 {[%emt 0:00:13]} 6. d4 {[%emt 0:00:30]} Nc6 {[%emt 0:00:05]} 7. O-O {[%emt 0:00:22]} a6 {[%emt 0:00:05]} 8. h3 {[%emt 0:02:22]} Rb8 {[%emt 0:00:18]} 9. e4 {[%emt 0:02:57]} e5 {[%emt 0:15:22]} 10. d5 {[%emt 0:07:00]} Na5 {[%emt 0:22:46] E63: King's Indian: Fianchetto: Panno Variation with 7...a6.} 11. Qd3 {[%emt 0:22:00] [#] Black must now prevent b4.} c5 {[%emt 0:00:00][%cal Ob7b5]} 12. dxc6 {[%emt 0:14:14] [#]} Nxc6 $146 {[%emt 0:00:00][%cal Ob7b5] White is slightly better.} ({Predecessor:} 12... bxc6 13. b3 Qc7 14. Rd1 Nb7 15. Be3 Be6 16. Rac1 Rbd8 17. Ng5 Bc8 18. Nf3 h6 {1-0 De Boer,B (2145)-Treybal,D (1996) Skalica Masters op 2020 (2)}) 13. Rd1 {[%emt 0:02:13]} Be6 {[%emt 0:01:22]} 14. Bg5 {[%emt 0:11:37]} h6 {[%emt 0:02:58]} 15. Bxf6 {[%emt 0:02:21]} Bxf6 {[%emt 0:00:42]} 16. Nd5 {[%emt 0:00:26]} Bg7 {[%emt 0:00:17]} 17. a3 {[%emt 0:12:28]} Re8 {[%emt 0:05:36]} 18. Rac1 {[%emt 0:01:24]} Rc8 {[%emt 0:00:58]} 19. Qb3 {[%emt 0:02:21]} Na5 {[%emt 0:01:47]} 20. Qd3 {[%emt 0:01:31]} Kh7 {[%emt 0:02:17]} 21. Nh4 {[%emt 0:01:28]} (21. b4 $5 Nc6 $8 22. Ne3 $11) 21... Nc6 {[%emt 0:00:32]} 22. Kh2 {[%emt 0:01:49]} Nd4 {[%emt 0:02:41]} 23. Nf3 {[%emt 0:00:23][%cal Rf3d4]} Bd7 {[%emt 0:06:02]} 24. Nxd4 {[%emt 0:00:58]} exd4 {[%emt 0:00:06]} 25. Bf1 {[%emt 0:01:43]} Bc6 {[%emt 0:01:34]} 26. Bg2 {[%emt 0:00:28]} Kg8 {[%emt 0:01:18]} 27. Kg1 {[%emt 0:00:08]} Rb8 {[%emt 0:01:29]} 28. Nb4 {[%emt 0:00:30]} Qb6 {[%emt 0:01:09]} 29. Rc2 {[%emt 0:00:45]} a5 {[%emt 0:04:16]} 30. Nd5 {[%emt 0:00:15]} Qd8 {[%emt 0:00:13]} 31. b3 {[%emt 0:00:18]} Rc8 {[%emt 0:08:48]} 32. Rdc1 {[%emt 0:00:12]} b6 {[%emt 0:01:39]} 33. Bf3 {[%emt 0:00:31]} h5 {[%emt 0:01:51]} 34. Kg2 {[%emt 0:00:46]} Bxd5 {[%emt 0:00:46]} 35. exd5 {[%emt 0:00:56]} h4 {[%emt 0:00:05] ...hxg3 would be deadly.} 36. g4 {[%emt 0:00:27]} Qg5 {[%emt 0:01:14]} 37. Rd1 {[%emt 0:00:31]} (37. a4 $11) 37... Rc7 {[%emt 0:03:48]} (37... Qf4 $15) 38. Re2 $11 {[%emt 0:00:48]} Rxe2 {[%emt 0:03:51]} 39. Bxe2 {[%emt 0:00:11]} Re7 {[%emt 0:02:46]} 40. Qd2 {[%emt 0:00:54]} Qxd2 {[%emt 0:04:03]} 41. Rxd2 {[%emt 0:30:07][%mdl 4096] Endgame KRB-KRB} Bh6 {[%emt 0:30:05]} 42. Rc2 {[%emt 0:00:00]} Kg7 {[%emt 0:00:00]} 43. Kf1 {[%emt 0:00:00]} f5 {[%emt 0:00:00]} 44. gxf5 {[%emt 0:00:00]} gxf5 {[%emt 0:00:00]} 45. Ra2 {[%emt 0:00:00]} Bc1 {[%emt 0:00:00]} 46. a4 {[%emt 0:00:00]} Kf6 {[%emt 0:00:00]} 47. Ra1 {[%emt 0:00:00]} Bd2 {[%emt 0:00:00]} 48. Rd1 {[%emt 0:00:00]} Bc3 {[%emt 0:00:00]} 49. Rd3 {[%emt 0:00:00]} Re4 {[%emt 0:00:00]} 50. Rf3 {[%emt 0:00:00]} Kg5 {[%emt 0:00:00]} 51. Rd3 $1 {[%emt 0:00:00]} Re7 {[%emt 0:00:00]} 52. Rf3 {[%emt 0:00:00]} Re8 {[%emt 0:00:00]} 53. Rd3 $1 {[%emt 0:00:00]} Re5 {[%emt 0:00:00]} 54. Rf3 {[%emt 0:00:00]} Re7 {[%emt 0:00:00]} 55. Rd3 $1 {[%emt 0:00:00]} Kf4 {[%emt 0:00:00]} 56. Rf3+ {[%emt 0:00:00]} (56. Rd1 $11 {remains equal.}) 56... Ke4 $17 {[%emt 0:00:00]} 57. Rd3 {[%emt 0:00:30]} Rg7 {[%emt 0:00:00]} (57... f4 $17) 58. Rf3 {[%emt 0:00:16]} (58. Rd1 $11) 58... Bd2 {[%emt 0:00:00]} (58... Bb4 $17) 59. Rd3 $11 {[%emt 0:02:58] The position is equal.} Bf4 {[%emt 0:00:00] Strongly threatening ...Bh2.} 60. Rd1 {[%emt 0:00:25]} Bh2 {[%emt 0:00:00][%csl Gh2][%cal Rg7g1]} 61. Bd3+ {[%emt 0:00:02]} Kf3 {[%emt 0:00:00][%csl Gh2][%cal Rg7g1]} 62. Be2+ $1 {[%emt 0:00:10][%mdl 64] [#] Discovered Attack} Kf4 {[%emt 0:00:00][%csl Gh2][%cal Rg7g1]} (62... Ke4 $5 63. Bd3+ $8 Kf3 64. Be2+ {[%mdl 64] Discovered Attack} Ke4 $11) 63. Bd3 $1 {[%emt 0:00:14]} (63. Rxd4+ $2 {perishes.} Ke5 $19) 63... Kg5 {[%emt 0:02:43]} 64. Kg2 {[%emt 0:01:09] Weighted Error Value: White=0.12 (very precise) /Black=0.12 (very precise)} 1/2-1/2